bitfinex/quotes_SOLUSD_20240809
["timestamp","ask_amount","ask_price","bid_price","bid_amount"]
[1723241125372,48.44,154.43,154.39,6.4769]
[1723241125857,48.44,154.43,154.36,16.1959]
[1723241125858,48.44,154.46,154.38,16.1929]
[1723241126053,48.44,154.46,154.4,16.1908]
[1723241126370,48.44,154.46,154.32,32.3997]
[1723241126371,0.25098,154.45,154.32,32.3997]
[1723241126553,0.12549,154.44,154.32,32.3997]
[1723241126969,0.12549,154.44,154.38,6.4771]
[1723241127271,0.12549,154.45,154.4,22.6674]
[1723241127448,51.85117,154.45,154.4,22.6674]
[1723241127647,6.5728,154.47,154.4,16.1912]
[1723241127850,13.0465,154.47,154.4,16.1912]
[1723241128073,8.19182437,154.47,154.4,22.6678]
[1723241128467,6.4741,154.46,154.4,22.6678]
[1723241128672,6.5728,154.47,154.37,1.29532015]
[1723241128860,48.44,154.48,154.43,16.1884]
[1723241129052,6.4744,154.46,154.39,16.1918]
[1723241129254,1.61910569,154.47,154.39,16.1918]
[1723241129479,48.44,154.44,154.37,6.4778]
[1723241129864,48.44,154.44,154.37,16.1947]
[1723241130070,6.4747,154.45,154.37,16.1947]
[1723241130265,6.4747,154.45,154.31,19.33221277]
[1723241130266,48.44,154.48,154.41,6.4762]
[1723241130449,65.0,154.47,154.41,6.4762]
[1723241130776,48.44,154.48,154.43,22.663]
[1723241130974,48.44,154.48,154.43,16.1876]
[1723241131272,48.44,154.48,154.35,32.3924]
[1723241131273,6.4738,154.47,154.42,6.4758]
[1723241131485,48.44,154.48,154.4,16.1916]
[1723241131486,48.44,154.48,154.43,6.4752]
[1723241131652,1.61899323,154.5,154.43,6.4752]
[1723241131653,1.61866554,154.5,154.43,16.1883]
[1723241131855,48.44,154.56,154.43,16.1883]
[1723241131856,13.042,154.58,154.44,1.29508622]
[1723241132078,6.4687,154.6,154.54,6.4707]
[1723241132283,6.4693,154.58,154.52,22.6501]
[1723241132449,56.53528081,154.61,154.52,16.1789]
[1723241132854,6.47741439,154.61,154.55,16.1759]
[1723241133053,6.47741439,154.61,154.57,6.4694]
[1723241133258,6.4666,154.64,154.59,6.4686]
[1723241133456,48.44,154.67,154.5,1.29379325]
[1723241133654,48.44,154.67,154.58,6.4689]
[1723241133864,48.44,154.67,154.53,32.3553]
[1723241134152,6.5728,154.68,154.48,32.3649]
[1723241134153,6.4688,154.59,154.54,6.4707]
[1723241134359,48.44,154.64,154.56,6.4698]
[1723241134585,6.4679,154.61,154.55,22.6452]
[1723241135086,48.44,154.64,154.55,16.1749]
[1723241135262,6.467,154.63,154.58,6.469]
[1723241135676,48.44,154.64,154.58,6.469]
[1723241135875,48.44,154.64,154.49,48.44]
[1723241136088,6.4661,154.66,154.6,6.4682]
[1723241136401,48.44,154.67,154.54,16.1759]
[1723241136573,48.44,154.64,154.54,16.1759]
[1723241136783,48.44,154.64,154.58,6.4691]
[1723241136968,48.44,154.61,154.53,16.1774]
[1723241137168,0.12549,154.6,154.47,6.0444]
[1723241137392,6.47,154.56,154.5,6.4723]
[1723241137692,54.9095,154.58,154.46,16.547]
[1723241137987,0.12549,154.54,154.43,32.3763]
[1723241138189,48.44,154.55,154.49,6.4728]
[1723241138190,54.9104,154.55,154.49,6.4728]
[1723241138382,48.44,154.58,154.51,6.4717]
[1723241138565,48.44,154.58,154.5,6.4724]
[1723241138566,20.0,154.57,154.5,6.4724]
[1723241138889,6.4708,154.54,154.49,22.655]
[1723241139112,6.4708,154.54,154.4,64.987]
[1723241139113,0.12549,154.51,154.4,16.547]
[1723241139269,66.8696727,154.51,154.4,16.547]
[1723241139573,54.9132,154.49,154.43,16.1884]
[1723241139779,6.4733,154.48,154.43,22.6636]
[1723241140590,6.4748,154.45,154.4,16.1915]
[1723241140795,6.4746,154.45,154.4,22.668]
[1723241141001,54.913,154.49,154.44,6.4749]
[1723241141168,48.44,154.49,154.43,16.1885]
[1723241141374,54.9129,154.49,154.43,22.6639]
[1723241141895,54.9129,154.49,154.44,6.4748]
[1723241142092,48.44,154.52,154.46,16.1853]
[1723241142301,6.4713,154.53,154.46,16.1853]
[1723241142495,6.4718,154.52,154.46,22.6594]
[1723241142892,54.9104,154.55,154.49,16.1822]
[1723241143075,48.44,154.58,154.49,16.1822]
[1723241143571,6.4721,154.51,154.46,22.6592]
[1723241143770,17.79207833,154.57,154.46,16.1852]
[1723241143979,54.9121,154.51,154.46,16.1852]
[1723241144398,48.44,154.51,154.42,16.189]
[1723241144598,1.61863414,154.5,154.42,16.189]
[1723241144777,54.9138,154.47,154.42,22.6646]
[1723241145098,48.44,154.5,154.45,16.1861]
[1723241145311,45.0,154.49,154.42,16.1894]
[1723241145600,48.44,154.5,154.34,16.547]
[1723241145792,6.4732,154.49,154.43,22.6627]
[1723241145972,6.4732,154.49,154.3,19.33221277]
[1723241145973,6.4676,154.62,154.57,6.4695]
[1723241146172,48.44,154.62,154.53,16.1778]
[1723241146376,6.4691,154.58,154.53,16.1778]
[1723241146618,48.44,154.59,154.5,16.181]
[1723241146787,6.4695,154.58,154.52,6.4712]
[1723241146983,48.44,154.59,154.52,16.1782]
[1723241147286,54.6888,154.64,154.52,16.1782]
[1723241147287,48.44,154.62,154.52,16.1782]
[1723241147488,6.2488,154.64,154.48,32.3655]
[1723241147489,6.2488,154.64,154.55,16.175]
[1723241147691,1.61732678,154.63,154.55,16.175]
[1723241147890,6.4698,154.57,154.52,22.6503]
[1723241148174,6.2488,154.64,154.43,6.0444]
[1723241148175,50.05779118,154.56,154.43,6.0444]
[1723241148675,6.4708,154.54,154.49,6.4727]
[1723241148888,54.9103,154.56,154.51,6.4719]
[1723241149084,6.4712,154.54,154.46,16.1844]
[1723241149302,6.4712,154.54,154.48,6.4732]
[1723241149600,6.472,154.52,154.46,22.6581]
[1723241149804,48.44,154.56,154.48,6.4731]
[1723241150006,6.4717,154.52,154.47,6.4735]
[1723241150523,6.4721,154.51,154.46,16.1844]
[1723241150690,1.74394525,154.54,154.43,16.1883]
[1723241150691,0.12549,154.52,154.43,16.1883]
[1723241150895,66.9951348,154.52,154.44,6.4746]
[1723241151106,6.4728,154.5,154.44,6.4746]
[1723241151610,0.12549,154.51,154.43,16.1883]
[1723241151802,0.37647,154.51,154.43,16.1883]
[1723241152110,6.4728,154.5,154.45,6.4745]
[1723241152487,65.0,154.52,154.45,16.1854]
[1723241152690,6.4725,154.5,154.45,22.6598]
[1723241153310,48.44,154.5,154.42,16.1893]
[1723241153516,6.4751,154.44,154.33,6.0444]
[1723241153699,48.44,154.47,154.33,6.0444]
[1723241153700,48.44,154.47,154.39,16.1925]
[1723241154010,6.4759,154.42,154.37,6.4779]
[1723241154312,6.4754,154.43,154.38,6.4773]
[1723241154815,6.4758,154.42,154.37,6.4778]
[1723241155015,6.4754,154.43,154.37,6.4778]
[1723241155216,48.56549,154.44,154.35,6.4783]
[1723241155217,1.74491691,154.42,154.35,6.4783]
[1723241155419,0.12549,154.41,154.34,6.4791]
[1723241155594,6.4771,154.39,154.33,22.6784]
[1723241155797,68.44,154.38,154.3,16.2021]
[1723241156001,6.60219,154.4,154.34,6.4791]
[1723241156201,6.60169,154.42,154.36,6.4783]
[1723241156407,20.0,154.41,154.36,6.4783]
[1723241156619,26.4763,154.41,154.36,6.4783]
[1723241157010,26.4763,154.41,154.34,16.1969]
[1723241157011,6.5475,154.43,154.3,32.4023]
[1723241157204,6.5475,154.43,154.38,6.4773]
[1723241157518,6.4768,154.4,154.34,22.6767]
[1723241157728,48.44,154.39,154.27,1.29594401]
[1723241158018,54.9159,154.42,154.28,1.29588031]
[1723241158223,6.4785,154.36,154.3,6.4805]
[1723241158399,6.4785,154.36,154.26,39.169461]
[1723241158400,1.62006519,154.35,154.31,6.4803]
[1723241158593,48.44,154.39,154.31,16.2001]
[1723241158794,20.0,154.38,154.33,6.4795]
[1723241159013,26.4776,154.38,154.33,6.4795]
[1723241159201,1.62001185,154.37,154.31,22.6801]
[1723241159404,48.44,154.36,154.27,16.2048]
[1723241159617,48.44,154.36,154.31,6.4804]
[1723241159618,6.4783,154.36,154.31,6.4804]
[1723241159814,20.0,154.38,154.32,6.48]
[1723241160123,6.478,154.37,154.32,6.48]
[1723241160491,20.0,154.38,154.32,16.2]
[1723241160917,20.0,154.38,154.24,34.36871277]
[1723241160918,0.12549,154.36,154.28,16.2035]
[1723241161216,0.12549,154.36,154.24,15.0365]
[1723241161217,0.12549,154.36,154.29,6.4812]
[1723241161425,6.4791,154.35,154.29,6.4812]
[1723241161722,26.4792,154.34,154.29,6.4812]
[1723241162093,6.60509,154.33,154.28,6.4817]
[1723241162294,6.4812,154.3,154.25,6.4828]
[1723241162498,6.4812,154.3,154.22,32.4198]
[1723241162499,48.44,154.33,154.26,1.29657794]
[1723241162823,48.44,154.33,154.22,32.4198]
[1723241163004,6.4809,154.3,154.25,22.6903]
[1723241163207,6.4809,154.3,154.22,32.4198]
[1723241163208,20.0,154.29,154.22,16.2104]
[1723241163422,20.12549,154.29,154.24,6.4832]
[1723241163725,20.0,154.29,154.22,22.6942]
[1723241164027,51.85817,154.28,154.23,6.4837]
[1723241164405,20.0,154.29,154.24,16.2077]
[1723241165111,6.4817,154.28,154.24,15.7077]
[1723241165293,6.4817,154.28,154.23,6.4837]
[1723241165294,0.12549,154.28,154.21,16.2114]
[1723241165502,6.4841,154.23,154.18,22.7]
[1723241165699,45.37647,154.28,154.19,1.29696383]
[1723241165922,6.4825,154.26,154.21,22.6954]
[1723241166112,0.37647,154.28,154.22,6.4842]
[1723241166428,20.0,154.29,154.23,16.2085]
[1723241166627,26.4813,154.29,154.23,16.2085]
[1723241166932,0.25098,154.28,154.15,40.03703894]
[1723241167115,0.12549,154.26,154.19,6.4851]
[1723241167318,6.483,154.25,154.2,6.4849]
[1723241167520,13.33729486,154.46,154.19,48.44]
[1723241167725,48.44,154.44,154.28,48.44]
[1723241168028,6.4791,154.35,154.29,16.203]
[1723241168203,6.4787,154.35,154.3,6.4807]
[1723241168403,1.62023877,154.37,154.26,16.2061]
[1723241168723,47.94,154.35,154.28,16.2032]
[1723241168928,64.6345,154.38,154.28,16.2032]
[1723241169226,6.4814,154.29,154.24,22.6913]
[1723241169523,6.4808,154.31,154.26,6.4821]
[1723241169709,6.3028,154.36,154.26,16.2054]
[1723241169907,68.44,154.35,154.2,32.4247]
[1723241170115,68.44,154.35,154.22,16.2099]
[1723241170430,48.44,154.25,154.18,16.2145]
[1723241170632,48.44,154.25,154.14,19.33221277]
[1723241170633,6.4851,154.2,154.15,0.8418172]
[1723241170824,54.9246,154.22,154.15,17.0595172]
[1723241171128,48.44,154.22,154.18,16.2138]
[1723241171504,20.0,154.24,154.18,16.2138]
[1723241171906,26.4837,154.24,154.18,22.6996]
[1723241172129,26.4837,154.24,154.19,6.4853]
[1723241172300,45.25098,154.23,154.18,16.2138]
[1723241172501,48.44,154.22,154.15,17.0597172]
[1723241172706,20.0,154.21,154.15,17.0597172]
[1723241173012,20.12549,154.21,154.15,17.0597172]
[1723241173911,20.12549,154.21,154.17,6.4863]
[1723241174230,6.4839,154.23,154.17,22.7008]
[1723241174404,6.4839,154.23,154.15,0.8418172]
[1723241174405,48.44,154.19,154.15,0.8418172]
[1723241175006,45.37647,154.22,154.06,6.4907]
[1723241175007,0.12549,154.15,154.06,6.4907]
[1723241175209,0.12549,154.15,154.04,6.4914]
[1723241175210,6.4897,154.09,154.04,6.4914]
[1723241175631,1.6227524,154.1,154.01,6.78355897]
[1723241175632,48.44,154.08,154.01,6.78355897]
[1723241175832,48.44,154.08,154.0,6.4931]
[1723241175833,6.491,154.06,154.0,6.4931]
[1723241176019,47.12509441,154.07,154.0,6.4931]
[1723241176329,6.4913,154.06,154.0,6.4934]
[1723241176533,6.4915,154.05,153.99,23.5697172]
[1723241176726,8.11521798,154.04,153.99,23.5697172]
[1723241177314,54.9314,154.05,153.99,17.0759172]
[1723241177522,54.9314,154.05,153.99,23.5697172]
[1723241177725,6.4918,154.04,153.99,23.5697172]
[1723241177936,1.62344719,154.04,153.99,0.8418172]
[1723241178113,6.4932,154.01,153.99,0.8418172]
[1723241178320,6.4931,154.01,153.99,0.8418172]
[1723241178519,48.69098,154.02,153.99,0.8418172]
[1723241178520,48.56549,154.02,153.99,0.8418172]
[1723241178736,20.0,154.01,153.99,0.8418172]
[1723241180727,51.74448,154.0,153.99,0.8418172]
[1723241180926,20.0,154.01,153.99,0.8418172]
[1723241181841,20.0,154.02,153.99,0.8418172]
[1723241182020,20.0,154.04,153.99,7.3353172]
[1723241182224,16.2238,154.1,153.99,17.0756172]
[1723241182527,112.7071,154.16,154.04,16.2294]
[1723241182528,48.44,154.11,154.04,16.2294]
[1723241182842,48.44,154.11,154.06,6.4909]
[1723241183038,48.44,154.11,154.0,16.2327]
[1723241183242,6.4897,154.09,154.03,6.4921]
[1723241183543,48.44,154.11,153.99,0.8418172]
[1723241183732,50.06266207,154.14,154.06,16.2264]
[1723241184035,50.06263949,154.14,154.06,16.2264]
[1723241184338,68.44,154.24,154.01,32.4638]
[1723241184339,48.44,154.17,154.1,6.4892]
[1723241184522,6.4873,154.15,154.09,22.7135]
[1723241184729,48.44,154.17,154.09,16.2239]
[1723241184935,6.4877,154.14,154.09,16.2239]
[1723241185112,48.44,154.17,154.09,16.2239]
[1723241185308,48.44,154.2,154.16,6.4867]
[1723241185514,48.44,154.2,154.06,19.33221277]
[1723241185818,48.44,154.2,154.15,16.2178]
[1723241186026,48.44,154.2,154.16,6.4866]
[1723241186230,48.44,154.2,154.15,16.2178]
[1723241186439,6.486,154.18,154.12,6.4883]
[1723241186632,1.62197156,154.17,154.12,6.4883]
[1723241186939,1.62197156,154.17,154.13,6.4879]
[1723241187743,1.62197156,154.17,154.07,16.2258]
[1723241187744,95.06197156,154.17,154.07,16.2258]
[1723241187962,95.06197156,154.17,154.1,6.4892]
[1723241187963,48.44,154.14,154.1,6.4892]
[1723241188122,48.44,154.17,154.1,16.2229]
[1723241188325,48.44,154.17,154.02,35.65541277]
[1723241188326,48.44,154.14,154.06,16.2271]
[1723241188632,20.0,154.13,154.06,16.2271]
[1723241189148,20.0,154.13,154.02,16.3232]
[1723241189149,20.0,154.13,154.09,16.2238]
[1723241189328,20.0,154.16,154.1,6.4889]
[1723241189526,20.0,154.16,154.11,6.4886]
[1723241190551,6.4827,154.26,154.21,6.4845]
[1723241190849,6.6233,154.29,154.1,32.4454]
[1723241190850,6.4851,154.2,154.14,6.4872]
[1723241191047,48.44,154.2,154.1,32.4454]
[1723241191348,6.4845,154.22,154.1,32.4454]
[1723241191537,48.44,154.24,154.17,6.4862]
[1723241191538,6.4838,154.23,154.17,6.4862]
[1723241191732,48.44,154.24,154.15,22.7044]
[1723241191927,6.4854,154.2,154.15,16.2177]
[1723241192122,48.44,154.21,154.15,16.2177]
[1723241192449,48.44,154.21,154.15,22.7046]
[1723241192748,54.925,154.21,154.15,22.7046]
[1723241192957,6.4851,154.2,154.15,22.7046]
[1723241193449,6.4851,154.2,154.15,16.2177]
[1723241193652,6.4851,154.2,154.15,22.7048]
[1723241194052,6.4851,154.2,154.15,16.2177]
[1723241194248,6.4869,154.16,154.09,6.4893]
[1723241194453,6.4876,154.14,154.09,6.4896]
[1723241194655,48.56549,154.15,154.08,16.2245]
[1723241194833,6.4885,154.12,154.05,16.2284]
[1723241195030,1.62260182,154.11,154.06,6.4909]
[1723241195231,1.62259398,154.1,154.06,6.4909]
[1723241195758,65.25098,154.11,154.04,6.4917]
[1723241195960,1.74843001,154.1,154.04,6.4917]
[1723241196131,20.0,154.11,154.04,16.2287]
[1723241196335,20.0,154.11,154.07,6.4905]
[1723241196562,20.0,154.11,154.06,6.4908]
[1723241196940,20.0,154.11,154.04,16.2287]
[1723241197135,6.4895,154.1,154.04,16.2287]
[1723241197550,26.4889,154.11,154.04,16.2287]
[1723241197749,20.0,154.11,154.1,6.4892]
[1723241197953,48.44,154.15,154.1,16.223]
[1723241198233,6.546,154.18,154.12,16.2201]
[1723241198234,54.986,154.18,154.12,16.2201]
[1723241198428,61.4719,154.18,154.12,16.2201]
[1723241198634,6.546,154.18,154.12,16.2201]
[1723241198843,6.546,154.18,154.13,6.4876]
[1723241199050,1.62191908,154.17,154.13,6.4876]
[1723241199359,13.0319,154.18,154.12,16.2201]
[1723241199360,13.032,154.18,154.12,16.2201]
[1723241199534,13.032,154.18,154.06,32.4534]
[1723241199535,21.6220347,154.17,154.09,16.2241]
[1723241199856,48.44,154.15,154.09,16.2241]
[1723241200356,48.44,154.15,154.06,16.2273]
[1723241200671,16.2145,154.19,153.99,49.2818172]
[1723241200672,10.16448249,154.25,154.14,20.9558]
[1723241200848,16.2589,154.39,154.27,16.2048]
[1723241201049,48.44,154.37,154.27,16.2048]
[1723241201365,48.44,154.37,154.18,67.77221277]
[1723241201366,0.43248901,154.37,154.3,16.202]
[1723241201660,6.4797,154.33,154.26,16.2054]
[1723241201967,6.4787,154.35,154.28,6.4813]
[1723241202136,6.4796,154.33,154.26,22.6875]
[1723241202339,48.44,154.35,154.3,6.4807]
[1723241202661,48.44,154.38,154.3,6.4807]
[1723241203332,48.44,154.38,154.29,16.2029]
[1723241203538,48.44,154.38,154.09,32.9490702]
[1723241203539,6.4809,154.3,154.25,16.2065]
[1723241203839,48.44,154.35,154.3,6.4808]
[1723241204049,48.44,154.38,154.28,16.2041]
[1723241204453,6.4792,154.34,154.28,16.2041]
[1723241204740,54.9179,154.38,154.32,6.48]
[1723241204953,48.44,154.38,154.28,16.2041]
[1723241205164,6.4792,154.34,154.28,22.6857]
[1723241205747,0.43248901,154.33,154.24,16.2077]
[1723241206146,0.68346901,154.32,154.24,16.2077]
[1723241206374,0.12549,154.31,154.24,16.2077]
[1723241206560,20.0,154.33,154.25,1.29640547]
[1723241206746,13.023,154.4,154.26,1.29628679]
[1723241206941,6.546,154.45,154.3,48.44]
[1723241207250,6.546,154.45,154.31,1.29563139]
[1723241207446,12.28917984,154.43,154.36,16.1957]
[1723241207648,12.28917984,154.43,154.37,6.4775]
[1723241207963,12.28917984,154.43,154.36,16.1957]
[1723241207964,5.81377984,154.43,154.36,16.1957]
[1723241208266,5.81377984,154.43,154.4,6.4766]
[1723241208467,23.6467172,154.54,154.41,1.2953684]
[1723241208670,30.1176172,154.54,154.48,22.6565]
[1723241208970,36.6636172,154.54,154.48,22.6565]
[1723241209170,23.6467172,154.54,154.45,16.1863]
[1723241209656,0.43248901,154.53,154.45,16.1863]
[1723241209978,6.4712,154.53,154.45,16.1863]
[1723241210857,6.4712,154.53,154.47,6.4736]
[1723241212470,24.07920621,154.54,154.45,16.1863]
[1723241212675,49.24895901,154.53,154.41,16.1897]
[1723241212870,6.4742,154.46,154.41,16.1897]
[1723241213178,20.12549,154.45,154.37,16.1938]
[1723241213354,45.0,154.44,154.37,16.1938]
[1723241213559,51.4754,154.44,154.38,6.4771]
[1723241213975,51.4754,154.44,154.39,6.477]
[1723241214178,51.4754,154.44,154.32,32.3983]
[1723241214179,20.50196,154.43,154.34,16.1978]
[1723241214385,0.12549,154.41,154.34,16.1978]
[1723241214553,20.50196,154.41,154.34,16.1978]
[1723241214757,45.0,154.4,154.36,6.4783]
[1723241215054,6.4779,154.38,154.32,6.48]
[1723241215255,0.55797901,154.39,154.3,16.2012]
[1723241215256,0.55797901,154.37,154.3,16.2012]
[1723241215591,0.25098,154.36,154.29,6.4811]
[1723241215764,6.4792,154.34,154.28,6.4816]
[1723241216081,6.4792,154.34,154.29,6.4812]
[1723241216281,0.25098,154.37,154.32,6.48]
[1723241216471,65.25098,154.37,154.27,1.29612369]
[1723241216669,45.0,154.4,154.33,16.1989]
[1723241216990,6.1249,154.41,154.36,6.4782]
[1723241217282,20.0,154.4,154.37,6.4777]
[1723241217792,20.0,154.4,154.36,16.1956]
[1723241217960,20.0,154.4,154.36,22.6739]
[1723241218168,6.1249,154.41,154.37,6.4778]
[1723241218366,6.80970159,154.46,154.36,16.1956]
[1723241218583,6.37721258,154.46,154.36,1.2954738]
[1723241218784,6.37721258,154.46,154.42,6.4757]
[1723241218986,6.37721258,154.46,154.4,16.1908]
[1723241218987,12.85141258,154.46,154.4,16.1908]
[1723241219279,6.37721258,154.46,154.41,6.4761]
[1723241219601,12.85141258,154.46,154.41,6.4761]
[1723241220462,0.12549,154.45,154.37,16.1946]
[1723241220686,0.12549,154.45,154.39,6.4769]
[1723241220687,6.475,154.44,154.39,6.4769]
[1723241220890,65.93444901,154.45,154.38,6.4774]
[1723241221192,6.4756,154.43,154.37,22.6724]
[1723241221385,0.43248901,154.42,154.34,48.5934]
[1723241221704,0.37647,154.43,154.39,6.477]
[1723241221873,51.60109,154.43,154.37,16.1944]
[1723241222068,0.12549,154.43,154.34,16.1978]
[1723241222273,6.4767,154.4,154.34,22.6766]
[1723241222484,6.4767,154.4,154.34,16.1978]
[1723241222673,6.85277,154.41,154.35,6.4786]
[1723241222873,45.12549,154.4,154.36,6.4782]
[1723241223096,45.12549,154.4,154.34,16.1978]
[1723241223272,45.0,154.39,154.34,16.1978]
[1723241223471,6.60239,154.4,154.35,6.4785]
[1723241223690,51.4772,154.39,154.34,22.6769]
[1723241223894,51.4772,154.39,154.14,9.32203581]
[1723241223895,0.12549,154.38,154.31,16.2008]
[1723241224089,0.12549,154.35,154.22,32.4199]
[1723241224394,0.68346901,154.35,154.22,32.4199]
[1723241224589,0.68346901,154.35,154.28,16.204]
[1723241224793,6.4805,154.31,154.24,16.2077]
[1723241225001,48.56549,154.33,154.25,1.29643558]
[1723241225296,6.1249,154.36,154.26,32.4115]
[1723241225506,16.05309,154.38,154.32,16.1992]
[1723241225719,48.44,154.42,154.34,16.1971]
[1723241225885,48.44,154.42,154.37,6.4775]
[1723241226191,6.1249,154.43,154.4,6.4766]
[1723241226398,6.37721258,154.46,154.4,16.1913]
[1723241226722,12.85171258,154.46,154.4,16.1913]
[1723241227030,6.37721258,154.46,154.37,16.1947]
[1723241227189,6.37721258,154.46,154.31,48.44]
[1723241227190,6.37721258,154.46,154.4,16.1916]
[1723241227383,6.37721258,154.46,154.4,22.6682]
[1723241227583,6.37721258,154.46,154.41,6.4762]
[1723241227584,12.85131258,154.46,154.41,6.4762]
[1723241227806,20.25098,154.45,154.4,22.6682]
[1723241228108,26.72558,154.45,154.4,22.6682]
[1723241228610,26.72558,154.45,154.4,16.1916]
[1723241228811,45.12549,154.44,154.4,16.1916]
[1723241228981,26.72558,154.45,154.4,22.6682]
[1723241228982,20.25098,154.45,154.4,22.6682]
[1723241229182,45.0,154.44,154.4,16.1916]
[1723241229393,45.0,154.44,154.31,48.44]
[1723241229394,45.0,154.44,154.37,16.1946]
[1723241229617,51.475,154.44,154.38,6.4774]
[1723241230211,48.44,154.41,154.34,16.1979]
[1723241230505,45.50196,154.4,154.36,6.478]
[1723241231416,20.0,154.45,154.37,16.1948]
[1723241231583,6.37721258,154.46,154.41,6.4762]
[1723241231584,12.85141258,154.46,154.41,6.4762]
[1723241232106,6.37721258,154.46,154.35,1.29527206]
[1723241232292,6.4759,154.42,154.36,6.4781]
[1723241232487,6.37721258,154.46,154.39,6.4769]
[1723241232788,6.4753,154.44,154.39,16.192]
[1723241233010,6.4776,154.38,154.33,6.4795]
[1723241233198,0.43248901,154.37,154.33,22.6782]
[1723241233426,6.4774,154.39,154.33,22.6782]
[1723241233607,71.00271258,154.46,154.36,16.1957]
[1723241233806,6.4768,154.4,154.36,16.1957]
[1723241234202,6.4763,154.41,154.36,16.1957]
[1723241234405,0.43248901,154.42,154.36,16.1957]
[1723241234406,6.37721258,154.46,154.36,16.1957]
[1723241234610,6.37721258,154.46,154.38,16.193]
[1723241234805,6.37721258,154.46,154.34,32.3952]
[1723241234806,6.37721258,154.46,154.43,6.4753]
[1723241235039,6.37721258,154.46,154.43,22.6638]
[1723241235223,6.37721258,154.46,154.43,16.1885]
[1723241235407,6.37721258,154.46,154.45,6.4745]
[1723241235601,6.37721258,154.46,154.43,16.1885]
[1723241236105,6.37721258,154.46,154.44,6.4749]
[1723241237114,6.37721258,154.46,154.43,16.1885]
[1723241237427,6.37721258,154.46,154.35,19.45770277]
[1723241237428,6.37721258,154.46,154.4,16.1913]
[1723241238122,6.60039,154.45,154.4,16.1913]
[1723241238304,6.37721258,154.46,154.4,16.1913]
[1723241238721,6.37721258,154.46,154.34,33.69052336]
[1723241238722,6.37721258,154.46,154.37,16.1944]
[1723241238924,48.44,154.41,154.33,6.4793]
[1723241239119,54.915,154.44,154.39,6.477]
[1723241239329,0.12549,154.44,154.4,6.4763]
[1723241239699,0.12549,154.44,154.38,16.1931]
[1723241239700,0.12549,154.44,154.31,32.4021]
[1723241239930,0.12549,154.4,154.33,6.4792]
[1723241240132,48.44,154.44,154.31,32.4021]
[1723241240304,6.4759,154.42,154.35,16.1969]
[1723241240846,20.0,154.41,154.35,16.1969]
[1723241241142,0.37647,154.43,154.37,16.1941]
[1723241241342,6.4758,154.42,154.37,22.672]
[1723241241730,6.4762,154.41,154.36,6.4783]
[1723241242041,6.4762,154.41,154.27,19.33221277]
[1723241242042,48.44,154.38,154.31,16.2007]
[1723241242230,0.12549,154.39,154.33,6.4792]
[1723241242417,20.37647,154.4,154.33,16.198]
[1723241242613,20.0,154.4,154.33,16.198]
[1723241242819,48.44,154.48,154.34,1.29574792]
[1723241243046,6.4735,154.48,154.43,6.4753]
[1723241243251,0.43248901,154.47,154.32,6.3953]
[1723241243541,48.44,154.48,154.36,16.1956]
[1723241243752,6.4747,154.45,154.39,6.4767]
[1723241243916,48.44,154.48,154.4,6.4765]
[1723241244416,68.44,154.45,154.36,6.4783]
[1723241244721,68.44,154.45,154.28,19.33221277]
[1723241244722,20.0,154.45,154.28,19.33221277]
[1723241244932,6.475,154.44,154.36,16.1949]